fUST/lending_fUST_20250618
["ID","MTS","AMOUNT","RATE_DAILY","PERIOD"]
[366381513,1750223448885,-605.67,0.00022246,6]
[366381515,1750223448895,-467.98626068,0.00022246,6]
[366381517,1750223448905,-3917.8,0.00022246,6]
[366381519,1750223448914,-460.0,0.00022246,6]
[366381521,1750223448923,-460.0,0.00022246,6]
[366381523,1750223448933,-1046.18,0.00022246,6]
[366381525,1750223448943,-460.0,0.00022246,6]
[366381527,1750223448952,-460.0,0.00022246,6]
[366381529,1750223448961,-460.0,0.00022246,6]
[366381531,1750223448971,-507.25,0.00022246,6]
[366381533,1750223448980,-559.21,0.00022246,6]
[366381535,1750223448991,-515.7,0.00022246,6]
[366381537,1750223449000,-460.0,0.00022246,6]
[366381539,1750223449009,-460.0,0.00022246,6]
[366381541,1750223449018,-249.27929008,0.00022246,6]
[366381543,1750223449027,-1238.71,0.00022246,6]
[366381545,1750223449037,-331.81304512,0.00022266,2]
[366381546,1750223449047,-500.0,0.00022273,2]
[366381548,1750223449058,-503.29591431,0.00022273,2]
[366381550,1750223449067,-500.0,0.00022273,2]
[366381552,1750223449077,-152.10033064,0.00022273,2]
[366381554,1750223449087,-503.49496422,0.00022273,2]
[366381556,1750223449097,-501.99711198,0.00022273,2]
[366381558,1750223449106,-502.33976283,0.00022273,2]
[366381560,1750223449116,-500.0,0.00022273,2]
[366381562,1750223449126,-500.0,0.00022273,2]
[366381564,1750223449137,-514.63453729,0.00022273,2]
[366381566,1750223449146,-115030.26,0.000223,2]
[366381568,1750223449156,-151.0,0.000223,7]
[366381570,1750223449166,-151.0,0.000223,7]
[366381572,1750223449175,-151.0,0.000223,7]
[366381574,1750223449185,-151.0,0.000223,7]
[366381576,1750223449196,-153.646742,0.000223,7]
[366381578,1750223449205,-151.0,0.000223,7]
[366381580,1750223449214,-151.0,0.000223,7]
[366381582,1750223449224,-151.0,0.000223,7]
[366381584,1750223449234,-151.0,0.000223,7]
[366381586,1750223449244,-233.119637,0.000223,7]
[366381588,1750223449254,-233.119637,0.000223,7]
[366381590,1750223449264,-211.762869,0.000223,7]
[366381592,1750223449274,-211.762869,0.000223,7]
[366381594,1750223449284,-151.0,0.000223,7]
[366381596,1750223449294,-158.049088,0.000223,7]
[366381598,1750223449304,-158.049088,0.000223,7]
[366381600,1750223449313,-587.0,0.00022306,2]
[366381601,1750223449323,-460.0,0.00022354,6]
[366381603,1750223449333,-460.0,0.00022354,6]
[366381605,1750223449343,-460.0,0.00022354,6]
[366381608,1750223449354,-401.29669292,0.00022354,6]
[366381609,1750223449363,-388.9642206,0.00022354,6]
[366381611,1750223449372,-564.66247567,0.00022354,6]
[366381613,1750223449382,-395.9971867,0.00022354,6]
[366381615,1750223449391,-352.40778262,0.00022354,6]
[366381617,1750223449401,-500.0,0.00022355,6]
[366381619,1750223449411,-572.78,0.00022356,6]
[366381621,1750223449421,-460.0,0.00022356,6]
[366381623,1750223449430,-574.29773761,0.00022356,6]
[366381625,1750223449440,-460.0,0.00022356,6]
[366381627,1750223449449,-174.90078431,0.00022356,6]
[366381629,1750223449459,-410.0,0.00022356,6]
[366381631,1750223449468,-460.0,0.00022356,6]
[366381633,1750223449478,-460.0,0.00022356,6]
[366381635,1750223449487,-460.0,0.00022356,6]
[366381637,1750223449497,-460.0,0.00022356,6]
[366381639,1750223449507,-460.0,0.00022356,6]
[366381641,1750223449516,-460.0,0.00022356,6]
[366381643,1750223449526,-263.90852847,0.00022356,6]
[366381645,1750223449535,-304.94767294,0.00022356,6]
[366381647,1750223449544,-298.0108661,0.00022356,6]
[366381649,1750223449554,-151.0,0.00022356,7]
[366381651,1750223449563,-280.0,0.00022356,6]
[366381653,1750223449572,-460.0,0.00022356,6]
[366381655,1750223449582,-460.0,0.00022356,6]
[366381657,1750223449592,-460.0,0.00022356,6]
[366381659,1750223449601,-151.0,0.00022356,7]
[366381661,1750223449611,-460.0,0.00022356,6]
[366381663,1750223449620,-151.0,0.00022356,7]
[366381665,1750223449629,-280.0,0.00022356,6]
[366381667,1750223449639,-531.98391446,0.00022356,6]
[366381669,1750223449648,-460.0,0.00022356,6]
[366381670,1750223449658,-281.81351477,0.00022356,6]
[366381672,1750223449667,-319.52261353,0.00022356,6]
[366381674,1750223449677,-460.0,0.00022356,6]
[366381676,1750223449686,-460.0,0.00022356,6]
[366381678,1750223449695,-490.87769882,0.00022356,6]
[366381680,1750223449707,-460.0,0.00022356,6]
[366381682,1750223449719,-460.0,0.00022356,6]
[366381684,1750223449729,-460.0,0.00022356,6]
[366381686,1750223449739,-460.0,0.00022356,6]
[366381688,1750223449749,-460.0,0.00022356,6]
[366381690,1750223449759,-460.0,0.00022356,6]
[366381692,1750223449768,-460.0,0.00022356,6]
[366381694,1750223449779,-825.78,0.00022356,6]
[366381696,1750223449788,-460.0,0.00022356,6]
[366381698,1750223449798,-460.0,0.00022356,6]
[366381700,1750223449807,-857.72,0.00022356,6]
[366381702,1750223449817,-265.13,0.00022356,6]
[366381704,1750223449827,-460.0,0.00022356,6]
[366381706,1750223449836,-1291.82,0.00022356,6]
[366381708,1750223449846,-268.30000749,0.00022356,6]
[366381710,1750223449855,-460.0,0.00022356,6]
[366381712,1750223449864,-460.0,0.00022356,6]
[366381714,1750223449874,-460.0,0.00022356,6]
[366381716,1750223449883,-538.67113294,0.00022356,6]
[366381718,1750223449893,-460.0,0.00022356,6]
[366381720,1750223449902,-460.0,0.00022356,6]
[366381722,1750223449912,-472.93,0.00022356,6]
[366381724,1750223449921,-1253.95,0.00022356,6]
[366381725,1750223449931,-460.0,0.00022356,6]
[366381726,1750223449940,-460.0,0.00022356,6]
[366381727,1750223449950,-460.0,0.00022356,6]
[366381728,1750223449960,-460.0,0.00022356,6]
[366381729,1750223449970,-460.0,0.00022356,6]
[366381730,1750223449980,-642.24,0.00022356,6]
[366381731,1750223449990,-460.0,0.00022356,6]
[366381732,1750223449999,-460.0,0.00022356,6]
[366381734,1750223450009,-460.0,0.00022356,6]
[366381736,1750223450018,-460.0,0.00022356,6]
[366381737,1750223450027,-460.0,0.00022356,6]
[366381739,1750223450037,-460.0,0.00022356,6]
[366381741,1750223450047,-460.0,0.00022356,6]
[366381743,1750223450058,-460.0,0.00022356,6]
[366381745,1750223450069,-460.0,0.00022356,6]
[366381748,1750223450079,-460.0,0.00022356,6]
[366381750,1750223450090,-460.0,0.00022356,6]
[366381751,1750223450099,-460.0,0.00022356,6]
[366381753,1750223450109,-460.0,0.00022356,6]
[366381756,1750223450119,-460.0,0.00022356,6]
[366381758,1750223450129,-821.1,0.00022356,6]
[366381760,1750223450139,-460.0,0.00022356,6]
[366381762,1750223450148,-460.0,0.00022356,6]
[366381764,1750223450157,-460.0,0.00022356,6]
[366381766,1750223450167,-460.0,0.00022356,6]
[366381767,1750223450176,-244.72161334,0.00022356,6]
[366381770,1750223450186,-496.14,0.00022356,6]
[366381772,1750223450196,-460.0,0.00022356,6]
[366381774,1750223450205,-460.0,0.00022356,6]
[366381776,1750223450214,-656.42,0.00022356,6]
[366381778,1750223450223,-460.0,0.00022356,6]
[366381780,1750223450233,-460.0,0.00022356,6]
[366381781,1750223450243,-460.0,0.00022356,6]
[366381784,1750223450253,-460.0,0.00022356,6]
[366381785,1750223450262,-460.0,0.00022356,6]
[366381788,1750223450272,-460.0,0.00022356,6]
[366381790,1750223450288,-460.0,0.00022356,6]
[366381792,1750223450298,-460.0,0.00022356,6]
[366381794,1750223450309,-605.67,0.00022356,6]
[366381796,1750223450319,-3917.8,0.00022356,6]
[366381798,1750223450328,-460.0,0.00022356,6]
[366381800,1750223450338,-460.0,0.00022356,6]
[366381802,1750223450348,-1046.18,0.00022356,6]
[366381804,1750223450357,-460.0,0.00022356,6]
[366381806,1750223450368,-460.0,0.00022356,6]
[366381808,1750223450377,-460.0,0.00022356,6]
[366381810,1750223450386,-507.25,0.00022356,6]
[366381812,1750223450395,-559.21,0.00022356,6]
[366381814,1750223450405,-515.7,0.00022356,6]
[366381816,1750223450415,-460.0,0.00022356,6]
[366381818,1750223450425,-460.0,0.00022356,6]
[366381819,1750223450434,-1238.71,0.00022356,6]
[366381822,1750223450444,-168.0,0.00022367,2]
[366381824,1750223450454,-1592.01320081,0.00022383,7]
[366381825,1750223450464,-460.0,0.00022464,6]
[366381827,1750223450474,-460.0,0.00022464,6]
[366381829,1750223450484,-584.6518091,0.00022464,6]
[366381831,1750223450493,-588.25,0.00022465,6]
[366381833,1750223450503,-460.0,0.00022465,6]
[366381836,1750223450512,-460.0,0.00022465,6]
[366381837,1750223450522,-460.0,0.00022465,6]
[366381839,1750223450531,-460.0,0.00022465,6]
[366381841,1750223450540,-561.72198608,0.00022465,6]
[366381852,1750223450633,-340.0,0.00022465,6]
[366381854,1750223450643,-460.0,0.00022465,6]
[366381856,1750223450653,-151.0,0.00022465,7]
[366381858,1750223450662,-460.0,0.00022465,6]
[366381860,1750223450672,-448.51230636,0.00022465,6]
[366381862,1750223450681,-460.0,0.00022465,6]
[366381864,1750223450691,-151.0,0.00022465,7]
[366381866,1750223450701,-460.0,0.00022465,6]
[366381868,1750223450713,-161.250594,0.00022465,7]
[366381870,1750223450722,-322.15926403,0.00022465,6]
[366381872,1750223450734,-460.0,0.00022465,6]
[366381874,1750223450744,-460.0,0.00022465,6]
[366381876,1750223450753,-460.0,0.00022465,6]
[366381878,1750223450763,-460.0,0.00022465,6]
[366381880,1750223450772,-401.50128124,0.00022465,6]
[366381882,1750223450783,-460.0,0.00022465,6]
[366381884,1750223450792,-460.0,0.00022465,6]
[366381886,1750223450801,-460.0,0.00022465,6]
[366381888,1750223450812,-460.0,0.00022465,6]
[366381890,1750223450821,-825.78,0.00022465,6]
[366381892,1750223450831,-460.0,0.00022465,6]
[366381894,1750223450840,-460.0,0.00022465,6]
[366381896,1750223450849,-857.72,0.00022465,6]
[366381898,1750223450858,-460.0,0.00022465,6]
[366381900,1750223450868,-1291.82,0.00022465,6]
[366381902,1750223450877,-350.0,0.00022465,6]
[366381904,1750223450886,-460.0,0.00022465,6]
[366381906,1750223450895,-460.0,0.00022465,6]
[366381908,1750223450904,-331.28133394,0.00022465,6]
[366381910,1750223450914,-460.0,0.00022465,6]
[366381912,1750223450923,-472.93,0.00022465,6]
[366381914,1750223450932,-1253.95,0.00022465,6]
[366381916,1750223450942,-451.41859367,0.00022465,6]
[366381918,1750223450951,-460.0,0.00022465,6]
[366381920,1750223450960,-460.0,0.00022465,6]
[366381922,1750223450969,-460.0,0.00022465,6]
[366381924,1750223450979,-460.0,0.00022465,6]
[366381926,1750223450987,-642.24,0.00022465,6]
[366381928,1750223450997,-460.0,0.00022465,6]
[366381930,1750223451006,-460.0,0.00022465,6]
[366381932,1750223451015,-460.0,0.00022465,6]
[366381934,1750223451024,-460.0,0.00022465,6]
[366381936,1750223451033,-460.0,0.00022465,6]
[366381938,1750223451043,-460.0,0.00022465,6]
[366381940,1750223451052,-460.0,0.00022465,6]
[366381942,1750223451062,-460.0,0.00022465,6]
[366381944,1750223451071,-460.0,0.00022465,6]
[366381946,1750223451083,-460.0,0.00022465,6]
[366381948,1750223451092,-460.0,0.00022465,6]
[366381950,1750223451101,-460.0,0.00022465,6]
[366381952,1750223451111,-460.0,0.00022465,6]
[366381954,1750223451121,-821.1,0.00022465,6]
[366381956,1750223451131,-460.0,0.00022465,6]
[366381958,1750223451140,-460.0,0.00022465,6]
[366381960,1750223451149,-460.0,0.00022465,6]
[366381962,1750223451159,-460.0,0.00022465,6]
[366381964,1750223451168,-496.14,0.00022465,6]
[366381966,1750223451177,-460.0,0.00022465,6]
[366381968,1750223451187,-460.0,0.00022465,6]
[366381970,1750223451196,-656.42,0.00022465,6]
[366381972,1750223451205,-460.0,0.00022465,6]
[366381974,1750223451215,-460.0,0.00022465,6]
[366381976,1750223451224,-460.0,0.00022465,6]
[366381978,1750223451233,-460.0,0.00022465,6]
[366381980,1750223451243,-460.0,0.00022465,6]
[366381982,1750223451253,-460.0,0.00022465,6]
[366381984,1750223451262,-460.0,0.00022465,6]
[366381986,1750223451272,-460.0,0.00022465,6]
[366381988,1750223451281,-605.67,0.00022465,6]
[366381990,1750223451290,-3917.8,0.00022465,6]
[366381992,1750223451299,-556.91494727,0.00022465,6]
[366381994,1750223451310,-460.0,0.00022465,6]
[366381996,1750223451319,-1046.18,0.00022465,6]
[366381998,1750223451327,-460.0,0.00022465,6]
[366382000,1750223451337,-460.0,0.00022465,6]
[366382002,1750223451347,-460.0,0.00022465,6]
[366382004,1750223451356,-507.25,0.00022465,6]
[366382006,1750223451365,-559.21,0.00022465,6]
[366382008,1750223451374,-515.7,0.00022465,6]
[366382010,1750223451384,-387.55927474,0.00022465,6]
[366382012,1750223451394,-460.0,0.00022465,6]
[366382014,1750223451403,-1238.71,0.00022465,6]
[366382016,1750223451412,-500.0,0.00022511,6]
[366382018,1750223451422,-500.0,0.00022512,6]
[366382020,1750223451431,-500.0,0.00022512,6]
[366382022,1750223451440,-1000.0,0.00022521,2]
[366382024,1750223451450,-502.91797516,0.00022521,2]
[366382026,1750223451459,-500.0,0.00022521,2]
[366382028,1750223451468,-510.02014759,0.00022521,2]
[366382030,1750223451478,-1000.0,0.00022521,2]
[366382032,1750223451488,-294.0,0.00022531,2]
[366382034,1750223451497,-391.46205681,0.00022573,6]
[366382036,1750223451506,-460.0,0.00022573,6]
[366382038,1750223451515,-500.0,0.00022574,6]
[366382040,1750223451524,-460.0,0.00022575,6]
[366382042,1750223451533,-154.672298,0.00022575,7]
[366382044,1750223451543,-460.0,0.00022575,6]
[366382046,1750223451552,-400.0,0.00022575,6]
[366382048,1750223451562,-460.0,0.00022575,6]
[366382050,1750223451571,-460.0,0.00022575,6]
[366382052,1750223451580,-460.0,0.00022575,6]
[366382054,1750223451589,-460.0,0.00022575,6]
[366382056,1750223451599,-460.0,0.00022575,6]
[366382058,1750223451614,-460.0,0.00022575,6]
[366382060,1750223451623,-460.0,0.00022575,6]
[366382062,1750223451632,-460.0,0.00022575,6]
[366382064,1750223451642,-460.0,0.00022575,6]
[366382066,1750223451651,-151.0,0.00022575,7]
[366382068,1750223451660,-460.0,0.00022575,6]
[366382070,1750223451669,-460.0,0.00022575,6]
[366382072,1750223451678,-400.0,0.00022575,6]
[366382074,1750223451687,-460.0,0.00022575,6]
[366382076,1750223451697,-825.78,0.00022575,6]
[366382078,1750223451711,-460.0,0.00022575,6]
[366382080,1750223451720,-151.0,0.00022575,7]
[366382082,1750223451729,-528.4,0.00022575,6]
[366382084,1750223451738,-857.72,0.00022575,6]
[366382086,1750223451747,-1291.82,0.00022575,6]
[366382088,1750223451757,-460.0,0.00022575,6]
[366382090,1750223451766,-543.40451038,0.00022575,6]
[366382092,1750223451775,-151.0,0.00022575,7]
[366382094,1750223451784,-460.0,0.00022575,6]
[366382096,1750223451793,-472.93,0.00022575,6]
[366382098,1750223451802,-1253.95,0.00022575,6]
[366382100,1750223451812,-460.0,0.00022575,6]
[366382102,1750223451822,-233.119637,0.00022575,7]
[366382104,1750223451831,-442.2394101,0.00022575,6]
[366382105,1750223451839,-460.0,0.00022575,6]
[366382107,1750223451848,-233.119637,0.00022575,7]
[366382109,1750223451858,-460.0,0.00022575,6]
[366382111,1750223451867,-642.24,0.00022575,6]
[366382113,1750223451876,-460.0,0.00022575,6]
[366382115,1750223451885,-460.0,0.00022575,6]
[366382117,1750223451894,-532.08,0.00022575,6]
[366382119,1750223451904,-460.0,0.00022575,6]
[366382121,1750223451913,-460.0,0.00022575,6]
[366382123,1750223451922,-460.0,0.00022575,6]
[366382125,1750223451932,-460.0,0.00022575,6]
[366382127,1750223451941,-460.0,0.00022575,6]
[366382129,1750223451950,-460.0,0.00022575,6]
[366382131,1750223451959,-460.0,0.00022575,6]
[366382133,1750223451968,-460.0,0.00022575,6]
[366382135,1750223451977,-821.1,0.00022575,6]
[366382137,1750223451987,-460.0,0.00022575,6]
[366382139,1750223451996,-460.0,0.00022575,6]
[366382141,1750223452005,-460.0,0.00022575,6]
[366382143,1750223452014,-460.0,0.00022575,6]
[366382145,1750223452023,-496.14,0.00022575,6]
[366382147,1750223452033,-460.0,0.00022575,6]
[366382149,1750223452042,-460.0,0.00022575,6]
[366382151,1750223452051,-656.42,0.00022575,6]
[366382153,1750223452061,-460.0,0.00022575,6]
[366382155,1750223452071,-460.0,0.00022575,6]
[366382157,1750223452082,-460.0,0.00022575,6]
[366382159,1750223452092,-460.0,0.00022575,6]
[366382161,1750223452101,-211.762869,0.00022575,7]
[366382163,1750223452110,-460.0,0.00022575,6]
[366382165,1750223452119,-211.762869,0.00022575,7]
[366382167,1750223452129,-460.0,0.00022575,6]
[366382169,1750223452138,-460.0,0.00022575,6]
[366382171,1750223452147,-460.0,0.00022575,6]
[366382173,1750223452157,-605.67,0.00022575,6]
[366382175,1750223452167,-3917.8,0.00022575,6]
[366382177,1750223452176,-460.0,0.00022575,6]
[366382179,1750223452186,-1046.18,0.00022575,6]
[366382181,1750223452195,-460.0,0.00022575,6]
[366382183,1750223452205,-545.75,0.00022575,6]
[366382185,1750223452215,-460.0,0.00022575,6]
[366382187,1750223452225,-507.25,0.00022575,6]
[366382189,1750223452234,-559.21,0.00022575,6]
[366382191,1750223452244,-515.7,0.00022575,6]
[366382193,1750223452253,-460.0,0.00022575,6]
[366382195,1750223452263,-151.0,0.00022575,7]
[366382197,1750223452272,-1238.71,0.00022575,6]
[366382199,1750223452281,-158.049088,0.00022575,7]
[366382201,1750223452291,-158.049088,0.00022575,7]
[366382203,1750223452300,-294.0,0.0002258,2]
[366382205,1750223452309,-1592.01320081,0.0002259,7]
[366382207,1750223452318,-214.410806,0.00022603,2]
[366382209,1750223452328,-460.0,0.00022683,6]
[366382211,1750223452337,-401.96,0.00022684,6]
[366382213,1750223452346,-460.0,0.00022684,6]
[366382215,1750223452355,-460.0,0.00022684,6]
[366382217,1750223452365,-460.0,0.00022684,6]
[366382219,1750223452374,-553.54,0.00022684,6]
[366382221,1750223452383,-460.0,0.00022684,6]
[366382223,1750223452392,-460.0,0.00022684,6]
[366382225,1750223452401,-264.711333,0.00022684,7]
[366382227,1750223452410,-460.0,0.00022684,6]
[366382238,1750223452500,-455.9,0.00022684,6]
[366382240,1750223452510,-460.0,0.00022684,6]
[366382242,1750223452520,-460.0,0.00022684,6]
[366382244,1750223452530,-460.0,0.00022684,6]
[366382246,1750223452539,-460.0,0.00022684,6]
[366382248,1750223452548,-825.78,0.00022684,6]
[366382250,1750223452558,-455.42580867,0.00022684,6]
[366382252,1750223452568,-857.72,0.00022684,6]
[366382254,1750223452578,-1291.82,0.00022684,6]
[366382256,1750223452587,-460.0,0.00022684,6]
[366382258,1750223452596,-460.0,0.00022684,6]
[366382260,1750223452605,-472.93,0.00022684,6]
[366382262,1750223452615,-1253.95,0.00022684,6]
[366382264,1750223452625,-460.0,0.00022684,6]
[366382266,1750223452634,-460.0,0.00022684,6]
[366382268,1750223452643,-460.0,0.00022684,6]
[366382269,1750223452652,-642.24,0.00022684,6]
[366382271,1750223452661,-460.0,0.00022684,6]
[366382273,1750223452670,-460.0,0.00022684,6]
[366382275,1750223452680,-250.0,0.00022684,6]
[366382277,1750223452688,-460.0,0.00022684,6]
[366382279,1750223452698,-460.0,0.00022684,6]
[366382281,1750223452711,-460.0,0.00022684,6]
[366382283,1750223452721,-460.0,0.00022684,6]
[366382285,1750223452730,-245.75075233,0.00022684,6]
[366382287,1750223452739,-460.0,0.00022684,6]
[366382289,1750223452749,-821.1,0.00022684,6]
[366382291,1750223452759,-460.0,0.00022684,6]
[366382293,1750223452769,-460.0,0.00022684,6]
[366382295,1750223452779,-460.0,0.00022684,6]
[366382297,1750223452789,-460.0,0.00022684,6]
[366382299,1750223452799,-496.14,0.00022684,6]
[366382301,1750223452808,-460.0,0.00022684,6]
[366382303,1750223452818,-460.0,0.00022684,6]
[366382305,1750223452827,-656.42,0.00022684,6]
[366382307,1750223452837,-460.0,0.00022684,6]
[366382309,1750223452848,-460.0,0.00022684,6]
[366382311,1750223452858,-550.45259238,0.00022684,6]
[366382313,1750223452867,-460.0,0.00022684,6]
[366382315,1750223452876,-207.44324608,0.00022684,6]
[366382317,1750223452886,-460.0,0.00022684,6]
[366382319,1750223452895,-460.0,0.00022684,6]
[366382321,1750223452904,-605.67,0.00022684,6]
[366382323,1750223452914,-430.0,0.00022684,6]
[366382325,1750223452923,-1046.18,0.00022684,6]
[366382327,1750223452932,-460.0,0.00022684,6]
[366382329,1750223452941,-460.0,0.00022684,6]
[366382331,1750223452951,-507.25,0.00022684,6]
[366382333,1750223452960,-3917.8,0.00022684,6]
[366382335,1750223452969,-559.21,0.00022684,6]
[366382337,1750223452978,-515.7,0.00022684,6]
[366382339,1750223452987,-460.0,0.00022684,6]
[366382341,1750223452997,-1238.71,0.00022684,6]
[366382343,1750223453007,-1200.0,0.00022721,2]
[366382345,1750223453016,-503.99533734,0.00022721,2]
[366382347,1750223453026,-1003.18634917,0.00022721,2]
[366382349,1750223453035,-460.0,0.00022792,6]
[366382351,1750223453044,-188.31329504,0.00022794,6]
[366382353,1750223453053,-460.0,0.00022794,6]
[366382355,1750223453063,-460.0,0.00022794,6]
[366382357,1750223453073,-154.971557,0.00022794,7]
[366382359,1750223453083,-460.0,0.00022794,6]
[366382361,1750223453092,-460.0,0.00022794,6]
[366382363,1750223453101,-460.0,0.00022794,6]
[366382365,1750223453111,-250.0,0.00022794,6]
[366382367,1750223453122,-460.0,0.00022794,6]
[366382369,1750223453132,-460.0,0.00022794,6]
[366382371,1750223453142,-460.0,0.00022794,6]
[366382373,1750223453152,-825.78,0.00022794,6]
[366382375,1750223453162,-857.72,0.00022794,6]
[366382377,1750223453171,-1291.82,0.00022794,6]
[366382379,1750223453181,-315.98,0.00022794,6]
[366382381,1750223453191,-460.0,0.00022794,6]
[366382383,1750223453200,-472.93,0.00022794,6]
[366382385,1750223453210,-1253.95,0.00022794,6]
[366382387,1750223453219,-460.0,0.00022794,6]
[366382389,1750223453229,-460.0,0.00022794,6]
[366382391,1750223453239,-460.0,0.00022794,6]
[366382393,1750223453249,-642.24,0.00022794,6]
[366382395,1750223453259,-460.0,0.00022794,6]
[366382397,1750223453268,-460.0,0.00022794,6]
[366382399,1750223453277,-460.0,0.00022794,6]
[366382401,1750223453287,-460.0,0.00022794,6]
[366382403,1750223453299,-460.0,0.00022794,6]
[366382405,1750223453312,-460.0,0.00022794,6]
[366382407,1750223453321,-460.0,0.00022794,6]
[366382409,1750223453330,-821.1,0.00022794,6]
[366382411,1750223453340,-460.0,0.00022794,6]
[366382413,1750223453350,-460.0,0.00022794,6]
[366382415,1750223453360,-460.0,0.00022794,6]
[366382417,1750223453369,-496.14,0.00022794,6]
[366382419,1750223453379,-460.0,0.00022794,6]
[366382421,1750223453393,-443.7556858,0.00022794,6]
[366382423,1750223453402,-656.42,0.00022794,6]
[366382425,1750223453412,-460.0,0.00022794,6]
[366382427,1750223453421,-440.0,0.00022794,6]
[366382429,1750223453431,-460.0,0.00022794,6]
[366382431,1750223453440,-460.0,0.00022794,6]
[366382433,1750223453449,-460.0,0.00022794,6]
[366382435,1750223453459,-605.67,0.00022794,6]
[366382437,1750223453469,-1046.18,0.00022794,6]
[366382439,1750223453478,-460.0,0.00022794,6]
[366382441,1750223453487,-460.0,0.00022794,6]
[366382443,1750223453497,-507.25,0.00022794,6]
[366382445,1750223453506,-3917.8,0.00022794,6]
[366382447,1750223453516,-559.21,0.00022794,6]
[366382449,1750223453525,-515.7,0.00022794,6]
[366382451,1750223453534,-460.0,0.00022794,6]
[366382453,1750223453544,-1238.71,0.00022794,6]
[366382455,1750223453554,-1592.01320081,0.00022797,7]
[366382457,1750223453563,-1000.0,0.00022821,2]
[366382459,1750223453572,-500.95696908,0.00022821,2]
[366382461,1750223453582,-1000.0,0.00022821,2]
[366382463,1750223453591,-1000.0,0.00022821,2]
[366382465,1750223453600,-213.43818883,0.00022876,2]
[366382467,1750223453610,-160.0,0.00022876,2]
[366382469,1750223453619,-229.98435572,0.00022876,2]
[366382471,1750223453629,-845.78193577,0.0002289,2]
[366382473,1750223453638,-12542.39314967,0.00022895,2]
[366382475,1750223453647,-151.0,0.00022895,7]
[366382477,1750223453656,-151.0,0.00022895,7]
[366382479,1750223453666,-151.0,0.00022895,7]
[366382481,1750223453676,-440.38795265,0.00022902,6]
[366382483,1750223453685,-460.0,0.00022904,6]
[366382485,1750223453694,-460.0,0.00022904,6]
[366382487,1750223453707,-460.0,0.00022904,6]
[366382489,1750223453716,-460.0,0.00022904,6]
[366382491,1750223453724,-460.0,0.00022904,6]
[366382493,1750223453733,-460.0,0.00022904,6]
[366382495,1750223453741,-460.0,0.00022904,6]
[366382496,1750223453753,-575.54174136,0.00022904,6]
[366382498,1750223453762,-825.78,0.00022904,6]
[366382501,1750223453772,-857.72,0.00022904,6]
[366382503,1750223453782,-1291.82,0.00022904,6]
[366382505,1750223453791,-460.0,0.00022904,6]
[366382507,1750223453801,-472.93,0.00022904,6]
[366382509,1750223453810,-1253.95,0.00022904,6]
[366382511,1750223453820,-460.0,0.00022904,6]
[366382513,1750223453829,-460.0,0.00022904,6]
[366382515,1750223453839,-460.0,0.00022904,6]